bitfinex-derivatives/quotes_ETHF0:USTF0_20260117
["timestamp","ask_amount","ask_price","bid_price","bid_amount"]
[1768617359766,0.87373041,3288.6,3287.9,0.98743828]
[1768617360074,1.09336642,3288.7,3287.9,0.98743828]
[1768617360269,0.87373063,3288.6,3287.9,0.98743828]
[1768617360470,1.09336642,3288.7,3287.9,0.98743828]
[1768617360769,0.87373039,3288.6,3287.9,0.98743828]
[1768617360965,1.09336642,3288.7,3287.9,0.98743828]
[1768617361166,0.87373046,3288.6,3287.9,0.98743828]
[1768617361365,1.09336642,3288.7,3287.9,0.98743828]
[1768617361567,0.87373043,3288.6,3287.9,0.98743828]
[1768617361864,1.09336642,3288.7,3287.9,0.98743828]
[1768617362064,0.87373054,3288.6,3287.9,0.98743828]
[1768617362261,1.09336642,3288.7,3287.9,0.98743828]
[1768617362464,0.8737305,3288.6,3287.9,0.98743828]
[1768617362659,1.09336642,3288.7,3287.9,0.98743828]
[1768617362859,0.8737309,3288.6,3287.9,0.98743828]
[1768617363063,1.09336642,3288.7,3287.9,0.98743828]
[1768617363260,0.87373185,3288.6,3287.9,0.98743828]
[1768617363465,1.09336642,3288.7,3287.9,0.98743828]
[1768617363761,0.87373246,3288.6,3287.9,0.98743828]
[1768617363966,1.09336642,3288.7,3287.9,0.98743828]
[1768617364179,0.87373163,3288.6,3287.9,0.98743828]
[1768617364376,1.09336642,3288.7,3287.9,0.98743828]
[1768617364577,0.87373316,3288.6,3287.9,0.98743828]
[1768617364767,1.09336642,3288.7,3287.9,0.98743828]
[1768617364969,0.87371649,3288.6,3287.9,0.98743828]
[1768617365266,1.09336642,3288.7,3287.9,0.98743828]
[1768617365565,0.87371822,3288.6,3287.9,0.98743828]
[1768617365763,1.09336642,3288.7,3287.9,0.98743828]
[1768617365973,0.87371822,3288.6,3287.9,0.98743828]
[1768617366170,1.09336642,3288.7,3287.9,0.98743828]
[1768617366379,0.87371772,3288.6,3287.9,0.98743828]
[1768617366576,1.09336642,3288.7,3287.9,0.98743828]
[1768617366871,0.87340415,3288.6,3287.9,0.98743828]
[1768617367077,1.09336642,3288.7,3287.9,0.98743828]
[1768617367273,0.87340436,3288.6,3287.8,0.98743828]
[1768617367476,1.06745532,3288.6,3287.6,0.99018665]
[1768617367780,1.06745532,3288.6,3287.8,0.98743828]
[1768617370783,1.06745532,3288.6,3287.6,0.00274837]
[1768617370983,1.06745532,3288.6,3287.7,0.98743828]
[1768617373185,1.06745532,3288.6,3287.9,0.98743828]
[1768617378991,1.06745532,3288.6,3287.6,0.00274837]
[1768617379185,1.06745532,3288.6,3287.8,0.98743828]
[1768617379378,1.06745532,3288.4,3287.6,0.00274837]
[1768617379687,0.87319,3288.3,3287.1,0.98743828]
[1768617379889,1.06745532,3288.2,3287.1,0.98743828]
[1768617380684,1.06745532,3288.2,3287.3,0.98743828]
[1768617380884,1.06745532,3288.2,3287.5,0.98743828]
[1768617381084,1.06745532,3288.2,3287.1,0.00358585]
[1768617381085,1.07027584,3288.7,3288.0,0.98743828]
[1768617381284,0.87292067,3288.6,3288.0,0.98743828]
[1768617381492,0.87292067,3288.5,3288.0,0.98743828]
[1768617381693,0.00282052,3288.7,3288.0,0.98743828]
[1768617381892,0.87290376,3288.6,3288.0,0.98743828]
[1768617382080,0.87290376,3288.5,3288.0,0.98743828]
[1768617382284,0.00282052,3288.7,3288.0,0.98743828]
[1768617382490,1.06745532,3289.1,3288.5,0.98743828]
[1768617383596,1.07126518,3289.1,3288.5,0.98743828]
[1768617383895,1.07126518,3289.1,3287.5,1.05341085]
[1768617384092,1.07126518,3289.1,3288.3,0.98743828]
[1768617384788,1.07126518,3289.1,3288.1,0.98743828]
[1768617386292,1.07126518,3289.1,3287.4,0.15216]
[1768617386486,1.01683931,3288.9,3287.6,0.98743828]
[1768617386897,1.01683931,3288.9,3287.8,0.98743828]
[1768617387692,1.01683931,3288.9,3287.9,0.98743828]
[1768617387897,1.01683931,3288.9,3287.4,0.15216]
[1768617388086,1.01683931,3288.9,3287.8,0.98743828]
[1768617394403,0.86628283,3288.8,3287.8,0.98743828]
[1768617394702,0.86628283,3288.7,3287.8,0.98743828]
[1768617394900,1.01683931,3288.9,3287.8,0.98743828]
[1768617395093,0.86628277,3288.8,3287.8,0.98743828]
[1768617395395,0.86628277,3288.7,3287.8,0.98743828]
[1768617395597,1.01683931,3288.9,3287.8,0.98743828]
[1768617395797,0.86627218,3288.8,3287.8,0.98743828]
[1768617396096,0.86627218,3288.7,3287.8,0.98743828]
[1768617396404,1.01683931,3288.9,3287.8,0.98743828]
[1768617396606,0.86536777,3288.8,3287.8,0.98743828]
[1768617396795,0.86536777,3288.7,3287.8,0.98743828]
[1768617396995,1.01683931,3288.9,3287.8,0.98743828]
[1768617403311,1.01683931,3288.9,3287.4,0.15216]
[1768617413330,1.93151845,3288.8,3287.4,0.15216]
[1768617413531,1.06516781,3288.8,3287.4,0.15216]
[1768617421433,1.06516781,3288.6,3287.4,0.15216]
[1768617421630,1.06516781,3288.6,3287.1,1.0569967]
[1768617421840,1.06516781,3288.4,3287.1,0.00358585]
[1768617422029,1.06516781,3288.2,3287.1,0.00358585]
[1768617440257,1.06516781,3287.8,3286.0,1.693]
[1768617440449,1.06516781,3287.4,3285.7,0.15224]
[1768617440648,0.86350376,3287.3,3286.3,0.98750194]
[1768617440847,1.06516781,3287.8,3286.7,0.98750194]
[1768617441044,1.06516781,3288.2,3286.7,0.98750194]
[1768617441350,1.06516781,3288.2,3287.1,0.98750194]
[1768617441744,1.04910105,3289.0,3287.1,0.98750194]
[1768617441952,1.04910105,3288.8,3287.1,0.98750194]
[1768617442152,0.86355289,3288.7,3287.1,0.98750194]
[1768617442358,1.91265394,3288.7,3287.1,0.98750194]
[1768617442550,0.86355289,3288.6,3287.1,0.98750194]
[1768617443656,0.86382724,3288.5,3287.1,0.98750194]
[1768617443859,1.04910105,3288.7,3287.1,0.98750194]
[1768617444156,1.91292828,3288.6,3287.1,0.98750194]
[1768617444357,0.86382723,3288.5,3287.1,0.98750194]
[1768617444656,1.04910105,3288.6,3287.1,0.98750194]
[1768617444858,1.91306781,3288.5,3287.1,0.98750194]
[1768617445049,1.04910105,3288.5,3287.1,0.98750194]
[1768617446962,0.86430837,3288.4,3287.1,0.98750194]
[1768617447164,1.04910105,3288.2,3286.7,0.00386166]
[1768617449361,1.04910105,3288.0,3286.7,0.00386166]
[1768617463568,1.07536845,3287.8,3286.7,0.00386166]
[1768617465370,1.07536845,3287.8,3286.8,0.98809772]
[1768617477377,1.07536845,3287.8,3286.7,0.00386166]
[1768617477579,1.07536845,3287.8,3286.9,0.98809772]
[1768617479484,0.15211,3288.5,3287.2,0.98809772]
[1768617479779,0.87547433,3288.4,3288.0,0.67918232]
[1768617479979,0.00380986,3289.1,3288.2,0.98809772]
[1768617480179,0.26270347,3289.0,3288.0,0.98809772]
[1768617480481,0.26270347,3288.9,3288.0,0.98809772]
[1768617480686,0.00380986,3289.1,3288.0,0.98809772]
[1768617480880,0.26270992,3289.0,3288.0,0.98809772]
[1768617481076,0.26270992,3288.9,3288.0,0.98809772]
[1768617481386,0.00380986,3289.1,3287.4,1.02195131]
[1768617481586,1.31528636,3289.0,3287.8,0.98809772]
[1768617481788,0.26259192,3288.9,3287.8,0.98809772]
[1768617481987,1.05269444,3289.0,3287.8,0.98809772]
[1768617482178,0.26259194,3288.9,3287.8,0.98809772]
[1768617482485,1.05269444,3289.0,3287.8,0.98809772]
[1768617484990,1.05269444,3289.0,3288.0,0.98809772]
[1768617485889,1.05269444,3289.0,3287.4,1.02195131]
[1768617486089,1.05269444,3289.0,3287.9,0.98809772]
[1768617488791,0.00380986,3289.1,3287.9,0.98809772]
[1768617490193,0.99190758,3289.1,3287.9,0.98809772]
[1768617491993,0.86668355,3289.0,3287.9,0.98809772]
[1768617492291,0.86668355,3288.9,3287.9,0.98809772]
[1768617492478,0.86668355,3288.8,3287.9,0.98809772]
[1768617492683,0.86668355,3288.7,3287.9,0.98809772]
[1768617492887,0.00380986,3289.1,3287.9,0.98809772]
[1768617493084,0.86661356,3289.0,3287.9,0.98809772]
[1768617493385,0.86661356,3288.9,3287.9,0.98809772]
[1768617493584,0.86661356,3288.8,3287.9,0.98809772]
[1768617493783,0.86661356,3288.7,3287.9,0.98809772]
[1768617493992,0.00380986,3289.1,3287.9,0.98809772]
[1768617494193,0.8665584,3289.0,3288.1,0.98809772]
[1768617494493,0.00380986,3289.1,3288.3,0.98809772]
[1768617494694,0.8666352,3289.0,3288.3,0.98809772]
[1768617494890,0.00380986,3289.1,3288.3,0.98809772]
[1768617495092,0.866638,3289.0,3288.3,0.98809772]
[1768617495298,0.00380986,3289.1,3288.3,0.98809772]
[1768617507902,0.00380986,3289.1,3288.3,2.12544642]
[1768617516618,0.00608,3289.4,3288.8,0.98809772]
[1768617516816,0.8673031,3289.3,3288.6,0.98809772]
[1768617517017,0.8673031,3289.2,3288.6,0.98809772]
[1768617517221,0.00608,3289.4,3288.6,0.98809772]
[1768617517421,0.86729317,3289.3,3288.6,0.98809772]
[1768617517621,0.86729317,3289.2,3288.6,0.98809772]
[1768617517818,0.00259028,3289.2,3288.6,0.98809772]
[1768617522130,0.00259028,3289.2,3288.4,1.09411264]
[1768617522333,0.990688,3289.2,3287.9,0.98809772]
[1768617522523,0.990688,3289.2,3287.9,2.08221036]
[1768617523326,0.00259028,3289.2,3287.9,2.08221036]
[1768617523522,0.00259028,3289.2,3287.9,1.09411264]
[1768617523722,0.00259028,3289.2,3288.0,2.08221036]
[1768617524130,0.00259028,3289.2,3288.1,1.09411264]
[1768617524626,0.00259028,3289.2,3288.1,2.08221036]
[1768617525329,0.00259028,3289.2,3288.1,1.09411264]
[1768617527127,0.86770709,3289.1,3288.1,1.09411264]
[1768617527427,0.86770709,3289.0,3288.1,1.09411264]
[1768617527627,0.00259028,3289.2,3288.1,1.09411264]
[1768617527829,0.86770252,3289.1,3288.1,1.09411264]
[1768617528028,0.86770252,3289.0,3288.1,1.09411264]
[1768617528230,0.00259028,3289.2,3288.1,1.09411264]
[1768617528427,0.86770252,3289.1,3288.1,1.09411264]
[1768617528626,0.86770252,3289.0,3288.1,1.09411264]
[1768617528929,0.00259028,3289.2,3288.1,1.09411264]
[1768617529120,0.86769895,3289.1,3288.1,1.09411264]
[1768617529320,0.86769895,3289.0,3288.1,1.09411264]
[1768617529627,0.00259028,3289.2,3288.1,1.09411264]
[1768617529826,0.86770183,3289.1,3288.1,1.09411264]
[1768617530026,0.86770183,3289.0,3288.1,1.09411264]
[1768617530227,0.00259028,3289.2,3288.1,1.09411264]
[1768617530427,0.86770193,3289.1,3288.1,1.09411264]
[1768617530728,0.86770193,3289.0,3288.1,1.09411264]
[1768617530929,0.00259028,3289.2,3288.1,1.09411264]
[1768617531130,0.8677027,3289.1,3288.1,1.09411264]
[1768617531332,0.8677027,3289.0,3288.1,1.09411264]
[1768617531528,0.00259028,3289.2,3288.1,1.09411264]
[1768617531727,0.86768851,3289.1,3288.1,1.09411264]
[1768617532035,0.86768851,3289.0,3288.1,1.09411264]
[1768617532336,0.00259028,3289.2,3288.1,1.09411264]
[1768617532634,0.86770494,3289.1,3288.1,1.09411264]
[1768617532829,0.86770494,3289.0,3288.1,1.09411264]
[1768617533027,0.00259028,3289.2,3288.1,1.09411264]
[1768617533230,0.86770488,3289.1,3288.1,1.09411264]
[1768617533527,0.86770488,3289.0,3288.1,1.09411264]
[1768617533728,0.00259028,3289.2,3288.1,1.09411264]
[1768617533928,0.86772574,3289.1,3288.1,1.09411264]
[1768617534134,0.86772574,3289.0,3288.1,1.09411264]
[1768617534333,0.00259028,3289.2,3288.1,1.09411264]
[1768617534534,0.86775012,3289.1,3288.1,1.09411264]
[1768617534725,0.86775012,3289.0,3288.1,1.09411264]
[1768617534922,0.00259028,3289.2,3288.1,1.09411264]
[1768617535127,0.86775109,3289.1,3288.1,1.09411264]
[1768617535427,0.86775109,3289.0,3288.1,1.09411264]
[1768617535624,0.00259028,3289.2,3288.1,1.09411264]
[1768617535829,0.86778174,3289.1,3288.1,1.09411264]
[1768617536129,0.86778174,3289.0,3288.1,1.09411264]
[1768617536329,0.00259028,3289.2,3288.1,1.09411264]
[1768617536529,0.86781814,3289.1,3288.1,1.09411264]
[1768617536733,0.86781814,3289.0,3288.1,1.09411264]
[1768617536935,0.00259028,3289.2,3288.1,1.09411264]
[1768617541136,0.00259028,3289.2,3288.1,2.08134437]
[1768617541435,0.00259028,3289.2,3288.2,1.2005348]
[1768617559449,0.00608,3289.4,3288.2,1.2005348]
[1768617559645,0.86920718,3289.3,3288.2,1.2005348]
[1768617559944,0.00608,3289.4,3288.2,1.2005348]
[1768617560147,0.86921696,3289.3,3288.2,1.2005348]
[1768617560349,0.00608,3289.4,3288.2,1.2005348]
[1768617560542,0.15202,3290.4,3288.6,1.2005348]
[1768617560743,1.39040073,3290.3,3288.6,1.2005348]
[1768617561041,0.26921668,3290.2,3288.6,1.2005348]
[1768617561243,0.26921668,3290.1,3288.6,1.2005348]
[1768617561544,0.26921668,3290.0,3288.6,1.2005348]
[1768617561748,0.00383333,3290.1,3288.6,1.2005348]
[1768617561945,0.26146977,3290.0,3288.6,1.2005348]
[1768617562150,0.00383333,3290.1,3288.6,1.2005348]
[1768617562350,0.26146977,3290.0,3288.6,1.2005348]
[1768617562551,0.00383333,3290.1,3288.6,1.2005348]
[1768617562859,0.26141008,3290.0,3288.6,1.2005348]
[1768617563049,0.00383333,3290.1,3288.6,1.2005348]
[1768617563247,0.26141007,3290.0,3288.6,1.2005348]
[1768617563446,0.00383333,3290.1,3288.6,1.2005348]
[1768617563641,0.26136743,3290.0,3288.6,1.2005348]
[1768617563846,0.00383333,3290.1,3288.6,1.2005348]
[1768617564048,0.26136744,3290.0,3288.6,1.2005348]
[1768617564247,0.00383333,3290.1,3288.6,1.2005348]
[1768617564452,0.26136487,3290.0,3288.6,1.2005348]
[1768617564654,0.00383333,3290.1,3288.6,1.2005348]
[1768617564846,0.26133473,3290.0,3288.6,1.2005348]
[1768617565151,0.00383333,3290.1,3288.6,1.2005348]
[1768617566357,1.13784751,3290.1,3288.2,1.15439639]
[1768617566556,1.39528906,3290.0,3288.2,1.15439639]
[1768617566857,0.26127188,3289.9,3288.2,1.15439639]
[1768617567152,1.13401418,3290.0,3288.2,1.15439639]
[1768617572456,0.86437114,3289.9,3288.2,1.15439639]
[1768617572657,0.86437114,3289.8,3288.2,1.15439639]
[1768617572955,0.86437114,3289.7,3288.2,1.15439639]
[1768617573157,0.86437114,3289.6,3288.2,1.15439639]
[1768617573349,1.13401418,3290.0,3288.2,1.15439639]
[1768617573549,0.86435557,3289.9,3288.2,1.15439639]
[1768617573749,1.13401418,3290.0,3288.2,1.15439639]
[1768617573750,0.86435557,3289.8,3288.2,1.15439639]
[1768617573949,0.86435557,3289.7,3288.2,1.15439639]
[1768617574150,0.86435557,3289.6,3288.2,1.15439639]
[1768617574358,1.13401418,3290.0,3288.2,1.15439639]
[1768617574558,0.86434851,3289.9,3288.2,1.15439639]
[1768617574758,0.86434851,3289.8,3288.2,1.15439639]
[1768617574960,0.86434851,3289.7,3288.2,1.15439639]
[1768617575162,0.86434851,3289.6,3288.2,1.15439639]
[1768617575352,1.13401418,3290.0,3288.2,1.15439639]
[1768617575552,0.86434731,3289.9,3288.2,1.15439639]
[1768617575763,0.86434731,3289.8,3288.2,1.15439639]
[1768617575958,0.86434731,3289.7,3288.2,1.15439639]
[1768617576153,0.86434731,3289.6,3288.2,1.15439639]
[1768617576354,1.13401418,3290.0,3288.2,1.15439639]
[1768617576562,0.86435093,3289.9,3288.2,1.15439639]
[1768617576757,1.12557187,3289.8,3288.2,1.15439639]
[1768617576953,0.86435093,3289.7,3288.2,1.15439639]
[1768617577153,0.86435093,3289.6,3288.2,1.15439639]
[1768617577356,0.86435093,3289.5,3288.2,1.15439639]
[1768617577652,1.13401418,3290.0,3288.2,1.15439639]
[1768617577964,1.12344299,3289.9,3288.2,1.15439639]
[1768617578265,1.13401418,3290.0,3288.2,1.15439639]
[1768617578266,1.12344299,3289.8,3288.2,1.15439639]
[1768617578563,0.86221731,3289.7,3288.2,1.15439639]
[1768617578762,0.86221731,3289.6,3288.2,1.15439639]
[1768617578965,0.86221731,3289.5,3288.2,1.15439639]
[1768617579162,0.00383333,3290.1,3288.2,1.15439639]
[1768617579362,1.12349608,3290.0,3288.2,1.15439639]
[1768617579564,1.12349608,3289.9,3288.2,1.15439639]
[1768617579868,1.12349608,3289.8,3288.2,1.15439639]
[1768617580166,0.86226358,3289.7,3288.2,1.15439639]
[1768617580369,0.86226358,3289.6,3288.2,1.15439639]
[1768617580665,0.86226358,3289.5,3288.2,1.15439639]
[1768617580972,0.00383333,3290.1,3288.2,1.15439639]
[1768617581263,1.12354256,3290.0,3288.2,1.15439639]
[1768617581463,1.12354256,3289.9,3288.2,1.15439639]
[1768617581660,0.86229384,3289.8,3288.2,1.15439639]
[1768617581865,0.00383333,3290.1,3288.7,1.14697929]
[1768617582058,0.86246755,3290.0,3288.7,1.14697929]
[1768617582262,0.00383333,3290.1,3288.7,1.14697929]
[1768617587476,0.00383333,3290.1,3289.0,0.98668749]
[1768617588675,0.15199,3291.0,3289.1,1.14697929]
[1768617588879,1.23649894,3291.1,3289.1,1.29905929]
[1768617589080,0.98668749,3290.8,3289.4,0.98668749]
[1768617589275,0.98668749,3290.6,3289.2,0.98668749]
[1768617589476,2.22318643,3290.6,3289.2,0.98668749]
[1768617589672,0.98668749,3290.4,3289.2,0.00258397]
[1768617589872,2.22535198,3290.6,3289.2,0.98927146]
[1768617590980,1.23866449,3290.6,3289.4,0.98668749]
[1768617599287,1.23866449,3290.6,3289.6,0.98668749]
[1768617600292,0.00216555,3290.6,3289.8,0.98668749]
[1768617601490,0.00216555,3290.6,3289.4,0.98668749]
[1768617604589,0.00216555,3290.6,3289.6,0.98668749]
[1768617606891,1.30045278,3290.6,3289.4,0.98668749]
[1768617607092,1.29828723,3290.5,3289.2,0.98927146]
[1768617610001,1.29828723,3290.5,3289.2,0.00258397]
[1768617610196,1.29828723,3290.5,3289.3,0.98668749]
[1768617612000,1.29828723,3290.5,3289.2,0.00258397]
[1768617612001,1.29828723,3290.5,3289.5,0.98668749]
[1768617612201,1.29828723,3290.5,3289.2,0.00258397]
[1768617612501,1.29828723,3290.5,3289.5,0.98668749]
[1768617617201,1.29828723,3290.5,3289.2,0.00258397]
[1768617617505,1.29828723,3290.5,3289.5,0.98668749]
[1768617618698,1.29828723,3290.5,3289.7,0.98668749]
[1768617621813,0.00216555,3290.6,3289.7,0.98668749]
[1768617627817,0.00216555,3290.6,3290.1,0.98668749]
[1768617628197,0.00216555,3290.6,3289.9,0.98668749]
[1768617632110,1.64087701,3291.9,3289.9,0.15204]
[1768617632309,1.48892701,3291.7,3290.4,0.98668749]
[1768617632508,1.48892701,3291.5,3290.4,0.98668749]
[1768617633006,1.48892701,3291.5,3290.6,0.98668749]
[1768617633323,1.49159048,3291.5,3290.8,0.98668749]
[1768617635213,1.49159048,3291.5,3290.6,0.98668749]
[1768617636209,1.49159048,3291.5,3290.2,0.98668749]
[1768617638512,1.48892701,3290.7,3289.4,0.98668749]
[1768617638716,1.48892701,3290.7,3289.6,0.98668749]
[1768617640214,1.48892701,3290.7,3289.2,0.00258397]
[1768617640415,1.48892701,3290.7,3289.3,0.98668749]
[1768617640620,1.48892701,3290.3,3289.2,0.00258397]
[1768617643425,1.48892701,3290.1,3289.2,0.00258397]
[1768617653929,1.48892701,3290.1,3288.1,3.041]
[1768617654227,1.48892701,3290.1,3287.9,3.72133957]
[1768617654828,1.48892701,3290.1,3287.9,3.72456317]
[1768617656535,1.48892701,3290.1,3287.9,0.99013227]
[1768617663132,1.48892701,3290.1,3287.9,2.01217356]
[1768617667528,1.48892701,3290.1,3287.9,4.74660446]
[1768617667733,1.48892701,3290.1,3287.9,4.89874446]
[1768617668533,1.56290931,3289.9,3288.0,2.7344309]
[1768617670535,1.56290931,3289.9,3287.9,2.16431356]
[1768617670536,1.56290931,3289.9,3288.1,2.7344309]
[1768617674042,1.56290931,3289.7,3288.1,2.7344309]
[1768617676540,1.56290931,3289.7,3288.2,2.7344309]
[1768617683344,1.56290931,3289.7,3288.3,2.7344309]
[1768617684535,1.56290931,3289.7,3288.3,3.72133957]
[1768617691546,1.56290931,3289.7,3288.3,2.7344309]
[1768617707158,0.85751294,3289.6,3288.3,2.7344309]
[1768617707363,1.56290931,3289.7,3288.2,2.7344309]
[1768617707549,0.85751298,3289.6,3288.2,2.7344309]
[1768617707754,1.56290931,3289.7,3288.2,2.7344309]
[1768617707955,0.857513,3289.6,3288.2,2.7344309]
[1768617708257,1.56290931,3289.7,3288.2,2.7344309]
[1768617708457,0.85751276,3289.6,3288.2,2.7344309]
[1768617708767,1.56290931,3289.7,3288.2,2.7344309]
[1768617709059,0.85751204,3289.6,3288.2,2.7344309]
[1768617709265,1.56290931,3289.7,3288.2,2.7344309]
[1768617709466,0.85751092,3289.6,3288.2,2.7344309]
[1768617709667,1.56290931,3289.7,3288.2,2.7344309]
[1768617709867,0.85751094,3289.6,3288.2,2.7344309]
[1768617710059,1.56290931,3289.7,3288.2,2.7344309]
[1768617710260,0.85751093,3289.6,3288.2,2.7344309]
[1768617710456,1.56290931,3289.7,3288.2,2.7344309]
[1768617710663,0.85750997,3289.6,3288.2,2.7344309]
[1768617710963,1.56290931,3289.7,3288.2,2.7344309]
[1768617711165,0.85750994,3289.6,3288.2,2.7344309]
[1768617711372,1.56290931,3289.7,3288.7,0.9869624]
[1768617711558,0.85750942,3289.6,3288.7,0.9869624]
[1768617711758,1.56290931,3289.7,3288.7,0.9869624]
[1768617711959,0.85750937,3289.6,3288.7,0.9869624]
[1768617712168,1.56290931,3289.7,3288.7,0.9869624]
[1768617712359,0.85750901,3289.6,3288.7,0.9869624]
[1768617712559,1.56290931,3289.7,3288.2,2.7344309]
[1768617712762,2.42743946,3289.6,3288.7,0.9869624]
[1768617712959,1.56992973,3289.6,3288.7,0.9869624]
[1768617714170,1.56992973,3289.6,3288.2,2.7344309]
[1768617714366,1.56992973,3289.6,3288.7,0.9869624]
[1768617743283,1.56992973,3289.6,3288.3,2.7344309]
[1768617743488,1.56992973,3289.6,3288.8,0.9869624]
[1768617748292,1.56992973,3289.6,3288.3,2.7344309]
[1768617748495,1.56992973,3289.6,3288.7,0.9869624]
[1768617753393,1.56992973,3289.6,3288.2,2.7344309]
[1768617753586,1.56992973,3289.6,3288.8,0.9869624]
[1768617758805,1.56992973,3289.6,3288.5,0.9869624]
[1768617759097,1.59207286,3289.4,3288.5,0.9869624]
[1768617759496,1.59207286,3289.4,3288.1,2.8865609]
[1768617759700,1.59207286,3289.4,3288.3,0.9869624]
[1768617763402,1.59207286,3289.4,3288.4,0.9869624]
[1768617763605,1.59207286,3289.4,3288.6,0.9869624]
[1768617767609,1.59207286,3289.4,3288.0,0.9869624]
[1768617767808,1.59207286,3289.4,3288.7,0.9869624]
[1768617768497,1.59207286,3289.9,3288.9,0.9869624]
[1768617768698,0.85919066,3289.8,3288.9,0.9869624]
[1768617769005,0.85919066,3289.7,3288.9,0.9869624]
[1768617769198,1.59207286,3289.9,3288.9,0.9869624]
[1768617769399,0.8591955,3289.8,3288.9,0.9869624]
[1768617769598,0.8591955,3289.7,3288.9,0.9869624]
[1768617769799,1.59207286,3289.8,3288.9,0.9869624]
[1768617770108,0.85916786,3289.7,3288.9,0.9869624]
[1768617770308,1.59207286,3289.8,3288.9,0.9869624]
[1768617770606,0.85917141,3289.7,3288.9,0.9869624]
[1768617770908,1.59207286,3289.8,3288.9,0.9869624]
[1768617771108,0.85917148,3289.7,3288.9,0.9869624]
[1768617771410,1.59207286,3289.8,3288.5,0.98689518]
[1768617771707,0.85917556,3289.7,3288.5,0.98689518]
[1768617772006,1.59207286,3289.8,3288.5,0.98689518]
[1768617772198,0.8591757,3289.7,3288.5,0.98689518]
[1768617772399,1.59207286,3289.8,3288.5,0.98689518]
[1768617772601,0.85918277,3289.7,3288.5,0.98689518]
[1768617772800,1.59207286,3289.8,3288.5,0.98689518]
[1768617773002,0.85918274,3289.7,3288.5,0.98689518]
[1768617773200,1.59207286,3289.8,3288.5,0.98689518]
[1768617773398,0.85919113,3289.7,3288.5,0.98689518]
[1768617773596,1.59207286,3289.8,3288.5,0.98689518]
[1768617773796,0.85919208,3289.7,3288.5,0.98689518]
[1768617774008,1.59207286,3289.8,3288.5,0.98689518]
[1768617774199,0.85919036,3289.7,3288.5,0.98689518]
[1768617774401,1.59207286,3289.8,3288.5,0.98689518]
[1768617774600,2.53918674,3289.7,3288.5,0.98689518]
[1768617774800,1.67998697,3289.7,3288.5,0.98689518]
[1768617776515,1.67998697,3289.7,3288.2,0.98689518]
[1768617776717,1.67998697,3289.5,3288.2,0.98689518]
[1768617807351,1.70496724,3289.3,3288.2,0.98689518]
[1768617830471,1.70496724,3289.3,3288.0,2.7344309]
[1768617830773,1.70496724,3289.3,3288.0,3.72132608]
[1768617831266,1.70496724,3289.3,3288.0,2.7344309]
[1768617831474,1.70496724,3289.3,3288.5,0.98715513]
[1768617841179,1.70496724,3289.3,3288.8,0.98715513]
[1768617880309,1.70496724,3289.3,3288.1,2.7344309]
[1768617880513,1.70496724,3289.3,3288.8,0.98715513]
[1768617893326,1.70496724,3289.3,3288.3,0.98702101]
[1768617907041,1.7,3289.9,3288.7,0.98702101]
[1768617907242,1.12247884,3289.8,3288.7,0.98702101]
[1768617907439,0.86088516,3289.7,3288.7,0.98702101]
[1768617907635,0.86088516,3289.6,3288.7,0.98702101]
[1768617907949,0.86088516,3289.5,3288.7,0.98702101]
[1768617908147,1.7,3289.9,3288.7,0.98702101]
[1768617908446,1.12245062,3289.8,3288.7,0.98702101]
[1768617908635,0.86086075,3289.7,3288.7,0.98702101]
[1768617908834,0.15204,3290.0,3288.7,0.98702101]
[1768617908835,0.86086075,3289.6,3288.7,0.98702101]
[1768617909150,1.83526112,3290.0,3288.7,0.98702101]
[1768617909450,0.26158354,3289.9,3288.7,0.98702101]
[1768617909652,1.83526112,3290.0,3288.7,0.98702101]
[1768617909849,0.26157901,3289.9,3288.7,0.98702101]
[1768617910048,1.83526112,3290.0,3288.7,0.98702101]
[1768617910349,0.26157885,3289.9,3288.7,0.98702101]
[1768617910551,1.83526112,3290.0,3288.7,0.98702101]
[1768617910749,0.26157463,3289.9,3288.7,0.98702101]
[1768617911046,1.83526112,3290.0,3288.7,0.98702101]
[1768617911253,0.26157481,3289.9,3288.7,0.98702101]
[1768617911550,1.83526112,3290.0,3288.7,0.98702101]
[1768617911853,0.26156998,3289.9,3288.7,0.98702101]
[1768617912150,1.83526112,3290.0,3288.7,0.98702101]
[1768617912450,0.26157052,3289.9,3288.7,0.98702101]
[1768617912752,1.83526112,3290.0,3288.7,0.98702101]
[1768617912945,0.26156094,3289.9,3288.7,0.98702101]
[1768617913150,1.83526112,3290.0,3288.7,0.98702101]
[1768617914249,1.68322112,3290.6,3289.1,0.98702101]
[1768617914452,3.64477354,3290.5,3289.1,0.98702101]
[1768617914658,1.94477354,3290.4,3289.1,0.98702101]
[1768617914843,0.26155242,3290.3,3289.1,0.98702101]
[1768617915151,0.26155242,3290.2,3289.1,0.98702101]
[1768617915343,1.68322112,3290.3,3289.1,0.98702101]
[1768617916938,0.2613826,3290.2,3289.1,0.98702101]
[1768617917144,1.68322112,3290.3,3289.1,0.98702101]
[1768617917343,0.26137877,3290.2,3289.1,0.98702101]
[1768617917543,1.68322112,3290.3,3289.1,0.98702101]
[1768617917744,0.26134759,3290.2,3289.1,0.98702101]
[1768617917948,1.68322112,3290.3,3289.1,0.98702101]
[1768617918153,0.26134761,3290.2,3289.1,0.98702101]
[1768617918355,1.68322112,3290.3,3289.1,0.98702101]
[1768617918556,0.26132174,3290.2,3289.1,0.98702101]
[1768617918854,1.68322112,3290.3,3289.1,0.98702101]
[1768617919054,0.26132176,3290.2,3289.1,0.98702101]
[1768617919256,1.68322112,3290.3,3289.1,0.98702101]
[1768617919463,0.26130087,3290.2,3289.1,0.98702101]
[1768617919666,1.68322112,3290.3,3289.1,0.98702101]
[1768617919860,0.26130087,3290.2,3289.1,0.98702101]
[1768617920051,1.68322112,3290.3,3289.1,0.98702101]
[1768617920253,0.26130086,3290.2,3289.1,0.98702101]
[1768617920550,1.68322112,3290.3,3289.1,0.98702101]
[1768617920750,0.26128336,3290.2,3289.1,0.98702101]
[1768617920960,1.68322112,3290.3,3289.1,0.98702101]
[1768617921158,1.11749424,3290.2,3289.1,0.98702101]
[1768617921358,0.85621079,3290.1,3289.1,0.98702101]
[1768617921559,0.85621079,3290.0,3289.1,0.98702101]
[1768617921756,0.85621079,3289.9,3289.1,0.98702101]
[1768617921958,1.68322112,3290.3,3289.1,0.98702101]
[1768617922160,1.11742325,3290.2,3289.1,0.98702101]
[1768617922361,0.85615488,3290.1,3289.1,0.98702101]
[1768617922657,0.85615488,3290.0,3289.1,0.98702101]
[1768617922853,0.85615488,3289.9,3289.1,0.98702101]
[1768617923053,1.68322112,3290.3,3289.1,0.98702101]
[1768617923254,0.85608698,3290.2,3289.1,0.98702101]
[1768617923457,0.85608698,3290.1,3289.1,0.98702101]
[1768617923665,0.85608698,3290.0,3289.1,0.98702101]
[1768617923963,0.85608698,3289.9,3289.1,0.98702101]
[1768617924259,1.68322112,3290.3,3289.1,0.98702101]
[1768617924457,1.11730383,3290.2,3289.1,0.98702101]
[1768617924660,0.85605794,3290.1,3289.1,0.98702101]
[1768617924860,0.85605794,3290.0,3289.1,0.98702101]
[1768617925060,1.68322112,3290.3,3289.1,0.98702101]
[1768617925261,0.85603933,3290.2,3289.1,0.98702101]
[1768617925459,0.85603933,3290.1,3289.1,0.98702101]